Cogmind - Beta 16 @@@ ROGUE MODE // 2026.01.23 @ 12:23:24 Player: ILikeVoltron Result: Destroyed by Q4-BDK(R) with Subdweller Laser Performance ------------- Evolutions (0) 0 Regions Visited (2) 400 Robots Destroyed (25) 125 Value Destroyed (540) 540 Prototype IDs (0) 0 Alien Tech Used (0) 0 Bonus (0) 0 TOTAL SCORE: 1065 Bonus ------- None Cogmind --------- Core Integrity 0/250 Matter 285/300 Energy 34/100 System Corruption 0% Temperature Cool (6) Movement Rolling (105) Ox1 Location -10/Subcaves Parts ------- > --- POWER (1) -------- (None) > --- PROPULSION (2) --- Armored Wheel > --- UTILITY (2) ------ Improved Heat Sink Large Storage Unit > --- WEAPON (2) ------- Medium Laser Small Laser > --- INVENTORY (15) --- Light Nuclear Core Aluminum Leg Armored Wheel Armored Wheel Armored Wheel Improved Terrain Scanner Improved Targeting Computer Light Armor Plating Medium Armor Plating Particle Gun Beam Cannon Grenade Launcher Grenade Launcher Flail Peak State ------------ > --- POWER ------------ Ion Engine > --- PROPULSION ------- Aluminum Leg Aluminum Leg > --- UTILITY ---------- Improved Heat Sink Large Storage Unit > --- WEAPON ----------- Medium Laser Flail > --- INVENTORY -------- Light Nuclear Core Aluminum Leg Armored Wheel Armored Wheel Armored Wheel Armored Wheel Improved Terrain Scanner Improved Targeting Computer Light Armor Plating Medium Armor Plating Small Laser Particle Gun Beam Cannon Grenade Launcher Grenade Launcher [Rating: 12] Favorites ----------- Power Ion Engine Engine Ion Engine Propulsion Aluminum Leg Leg Aluminum Leg Wheel Armored Wheel Utility Large Storage Unit Device Seismic Detector Storage Large Storage Unit Protection Medium Armor Plating Weapon Assault Rifle Energy Gun Medium Laser Energy Cannon Beam Cannon Ballistic Gun Assault Rifle Impact Weapon Flail Build | -11 -10 -10 ------- Run | Yrd Mat Sub Slots Evolved . | . . . Power . | . . . Propulsion . | . . . Utility . | . . . Weapon . | . . . Parts Attached 14 | 1 10 3 Power 1 | . 1 . Engine 1 | . 1 . Core . | . . . Reactor . | . . . Propulsion 4 | . 3 1 Treads . | . . . Leg 3 | . 3 . Wheel 1 | . . 1 Hover . | . . . Flight . | . . . Utility 5 | 1 4 . Device 2 | 1 1 . Storage 2 | . 2 . Processor . | . . . Hackware . | . . . Protection 1 | . 1 . Artifact . | . . . Weapon 4 | . 2 2 Energy Gun 2 | . 1 1 Energy Cannon 1 | . 1 . Ballistic Gun . | . . . Ballistic Cannon . | . . . Launcher . | . . . Special Weapon . | . . . Impact Weapon 1 | . . 1 Slashing Weapon . | . . . Piercing Weapon . | . . . Special Melee Weapon . | . . . Unidentified Prototypes . | . . . Parts Lost 4 | . 1 3 Power 1 | . . 1 Propulsion 2 | . . 2 Utility 1 | . 1 . Weapon . | . . . Highest Loss Streak 3 | . 1 3 To Critical Strikes . | . . . Average Backups 11 | 7 10 15 Power . | 1 . 1 Propulsion 4 | 4 4 5 Utility 3 | . 3 4 Weapon 2 | 1 2 5 Tool/Special . | . . . Unused Backups 25 | 6 9 10 Power 3 | 1 1 1 Propulsion 9 | 2 4 3 Utility 6 | 1 2 3 Weapon 7 | 2 2 3 Tool/Special . | . . . Average Slot Usage (%) 99 | . 99 97 Engine 13 | . 14 12 Leg 27 | . 28 27 Device 9 | . 9 14 Storage 14 | . 14 14 Protection 4 | . 4 . Energy Gun 2 | . . 16 Energy Cannon 1 | . . 7 Ballistic Gun 22 | . 26 . Peak Build Rating 12 | 8 11 12 Average Rating 9 | 7 9 11 On Entrance 8 | 6 8 11 Avg Prop Armor Cover (%) . | . . . Naked Turns . | . . . Heaviest Build 37 | 15 37 31 Greatest Support 20 | 20 20 20 Greatest Overweight (x) 1 | . 1 1 Average Overweight (x) . | . . 1 Largest Inventory Capacity 15 | 8 15 15 Average Capacity 12 | 8 12 15 Most Carried 15 | 8 15 15 Average Carried 11 | 7 10 14 Final Capacity 15 | 8 15 15 Final Carried 15 | 8 15 14 Class Distribution -------------------- 87% | Mutant 12% | Scavenger-Mutant Dominant Class ---------------- Mutant | -10/Materials Scavenger-Mutant | -10/Subcaves Resources | -11 -10 -10 ----------- Run | Yrd Mat Sub Matter Collected 689 | 270 419 . Remotely . | . . . Salvage Created 904 | 172 732 . Parts 60 | 14 46 . Haulers Intercepted 1 | . 1 . Recyclers Shooed . | . . . Parts Field Recycled . | . . . Retrieved Matter . | . . . Parts Self-Destructed . | . . . Prevented . | . . . Parts Restored . | . . . Kills | -11 -10 -10 ------- Run | Yrd Mat Sub Combat Hostiles Destroyed 14 | . 14 . Guns 11 | . 11 . Cannons 3 | . 3 . Classes Destroyed 7 | 2 5 . Worker 1 | . 1 . Tunneler 6 | 5 1 . Hauler 1 | . 1 . Recycler 2 | 1 1 . Watcher 1 | . 1 . Swarmer 2 | . 2 . Grunt 12 | . 12 . Best Kill Streak 4 | 4 4 . Combat Bots Only 3 | . 3 . Max Kills in Single Turn 2 | 1 2 . Gunslinging . | . . . Exploded . | . . . Melee . | . . . Uniques/NPCs Destroyed . | . . . Combat | -11 -10 -10 -------- Run | Yrd Mat Sub Hostile Shots Fired 110 | . 80 30 Missed 31 | . 24 7 Hits 79 | . 56 23 Projectile 79 | . 56 23 Critical Strikes 2 | . 2 . Damage Taken 1149 | . 681 468 Core 261 | . 157 104 Absorbed by Shields . | . . . Core Remaining (%) 100 | 100 . . Volleys Fired 88 | 10 58 20 Largest 2 | 2 2 2 Hottest 110 | 40 110 90 Shots Fired 165 | 20 116 29 Gun 161 | 20 112 29 Cannon 4 | . 4 . Launcher . | . . . Special . | . . . Kinetic 128 | 20 108 . Thermal 37 | . 8 29 Explosive . | . . . Electromagnetic . | . . . Robot Hit Streak 20 | 7 10 20 Robot Miss Streak 3 | 2 3 1 Penetration Max . | . . . Secondary Targets 1 | . 1 . Max Gunslinging Chain 1 | . 1 . Shots Hit Robots 109 | 12 68 29 Core Hits 39 | 7 32 . Critical Kills 1 | 1 . . Critical Parts Destroyed . | . . . Critical Strikes 2 | 1 . 1 Destroy 1 | 1 . . Smash 1 | . . 1 Melee Attacks 6 | . . 6 Impact 6 | . . 6 Slashing . | . . . Piercing . | . . . Sneak Attacks . | . . . Combat Hostiles . | . . . Follow-up Attacks . | . . . Damage Inflicted 1086 | 147 891 48 Guns 984 | 147 837 . Cannons 54 | . 54 . Explosions . | . . . Melee 48 | . . 48 Ramming . | . . . Kinetic 971 | 147 824 . Thermal 67 | . 67 . Explosive . | . . . Electromagnetic . | . . . Impact 48 | . . 48 Slashing . | . . . Piercing . | . . . Highest Corruption . | . . . Average Corruption . | . . . Corruption Purged . | . . . Corruption Blocked . | . . . Overload Shots . | . . . Overflow Damage . | . . . Projectiles . | . . . Explosions . | . . . Melee . | . . . Knockbacks . | . . . Impact . | . . . Kinetic . | . . . Secondary . | . . . Self-Inflicted Damage . | . . . Shots . | . . . Rammed . | . . . Targets Rammed . | . . . Kicked . | . . . Crushed . | . . . Highest Temperature 153 | . 153 . Average Temperature 42 | . 42 . Received Heat Transfer 525 | . 387 138 Siege Activations . | . . . Martial Activations . | . . . Shielding Activations . | . . . Robots Disrupted . | . . . Combat Hostiles . | . . . Robots Corrupted . | . . . Combat Hostiles . | . . . Parts Fried . | . . . Impact Corruptions . | . . . Robots Melted . | . . . Combat Hostiles . | . . . Parts Melted . | . . . Heat Transferred 148 | . 148 . Parts Sabotaged . | . . . Parts Stolen . | . . . Parts Stripped . | . . . Power Chain Reactions . | . . . Alert | -11 -10 -10 ------- Run | Yrd Mat Sub Maximum Alert Level . | . . . Low Security (%) 100 | 100 100 . Level 1 . | . . . Level 2 . | . . . Level 3 . | . . . Level 4 . | . . . Level 5 . | . . . High Security . | . . . Max Security . | . . . Peak Influence 78 | 15 78 . Initial 3 | . 3 . Average 15 | 2 16 . Influence Increases 425 | 30 395 . Destroy 0b10 Robot/C 280 | . 280 . Destroy 0b10 Robot/NC 55 | 30 25 . Destroy Leader 64 | . 64 . Successful Hack 8 | . 8 . Destroy Structure 3 | . 3 . Lose Combat Pursuer 15 | . 15 . Influence Decreases 425 | 25 334 66 Entered New Map 35 | . 2 33 Time Decay 380 | 25 322 33 Lost Part 10 | . 10 . Squads Dispatched 3 | . 3 . Investigation 2 | . 2 . Extermination . | . . . Reinforcement 1 | . 1 . Assault . | . . . Garrison . | . . . Intercept . | . . . Searches Triggered . | . . . Construction Impeded . | . . . Haulers Reinforced . | . . . Active Scanning Responses . | . . . Cargo Convoy Interrupts . | . . . Stealth | -11 -10 -10 --------- Run | Yrd Mat Sub Distress Signals 3 | . 3 . Communications Jammed . | . . . Distress Signals . | . . . Times Spotted 24 | . 23 1 Peak Tracking Total 5 | . 5 2 Tactical Retreats 1 | . 1 . Traps | -11 -10 -10 ------- Run | Yrd Mat Sub Traps Triggered 1 | . 1 . Indirectly . | . . . Trap Hack Attempts . | . . . Triggered . | . . . Disarmed . | . . . Reprogrammed . | . . . Reused . | . . . Traps Extracted . | . . . Installed . | . . . Triggered . | . . . Machines | -11 -10 -10 ---------- Run | Yrd Mat Sub Machines Disabled . | . . . Max in Single Turn . | . . . Machines Repaired . | . . . Machines Dismantled . | . . . Machines Sabotaged . | . . . Overloaded Fab Kills . | . . . Hacking | -11 -10 -10 --------- Run | Yrd Mat Sub Machines Accessed 4 | . 4 . Terminals 4 | . 4 . Fabricators . | . . . Repair Stations . | . . . Recycling Units . | . . . Scanalyzers . | . . . Garrison Access . | . . . Total Hacks 9 | . 9 . Successful 1 | . 1 . Failed 8 | . 8 . Catastrophic 3 | . 3 . Database Lockouts . | . . . Manual 3 | . 3 . Terminals 9 | . 9 . Fabricators . | . . . Repair Stations . | . . . Recycling Units . | . . . Scanalyzers . | . . . Garrison Access . | . . . Terminal Hacks 1 | . 1 . Level Access Points 1 | . 1 . Fabricator Hacks . | . . . Repair Station Hacks . | . . . Recycling Unit Hacks . | . . . Scanalyzer . | . . . Garrison Access Hacks . | . . . Unauthorized Hacks . | . . . Terminals . | . . . Fabricators . | . . . Repair Stations . | . . . Recycling Units . | . . . Scanalyzers . | . . . Garrison Access . | . . . Data Cores Recovered . | . . . Used . | . . . Hacking Detections 4 | . 4 . Full Trace Events 1 | . 1 . Feedback Events . | . . . Feedback Blocked . | . . . Robot Schematics Acquired . | . . . Robots Built . | . . . Authchips . | . . . Time . | . . . Total Robot Build Rating . | . . . Part Schematics Acquired . | . . . Parts Built . | . . . Authchips . | . . . Time . | . . . Total Part Build Rating . | . . . Part Studies Acquired . | . . . Parts Repaired . | . . . Time . | . . . Parts Recycled . | . . . Recycled Matter . | . . . Retrieved Matter . | . . . Retrieved Components . | . . . Parts Scanalyzed . | . . . Part Schematics Acquired . | . . . Parts Damaged . | . . . Bothacking | -11 -10 -10 ------------ Run | Yrd Mat Sub Used RIF Installer . | . . . Robots Hacked . | . . . Non-combat . | . . . Combat . | . . . Robot Hacks Applied . | . . . Relay Couplers Released . | . . . Fabnet Peak Effective % . | . . . Robots Rewired . | . . . Allies Hacked . | . . . Hacks Repelled . | . . . Allies | -11 -10 -10 -------- Run | Yrd Mat Sub Total Allies . | . . . Largest Group . | . . . Highest-Rated Group . | . . . Highest-Rated Ally . | . . . Total Orders . | . . . Ally Attacks . | . . . Total Damage . | . . . Kills . | . . . Allies Corrupted . | . . . Allies Melted . | . . . Intel | -11 -10 -10 ------- Run | Yrd Mat Sub Active Infowar (turns) 802 | 70 732 . Seismic 802 | 70 732 . Robot Analysis Total . | . . . Derelict Logs Recovered . | . . . Drone Launches . | . . . Drone Recoveries . | . . . Exploration | -11 -10 -10 ------------- Run | Yrd Mat Sub Turns Passed 1445 | 96 1184 165 Spaces Moved 650 | 28 574 48 Core . | . . . Treads . | . . . Legs 650 | 28 574 48 Wheels . | . . . Hover . | . . . Flight . | . . . Fastest Speed 120 | 120 120 190 Average Speed 156 | 120 155 190 Slowest Speed 190 | 120 190 190 Overloaded Moves . | . . . Propulsion Burnouts . | . . . Robots Hopped . | . . . Potential Cave-ins . | . . . Cave-ins Triggered . | . . . Exploration Rate (%) 30 | 3 81 6 Regions Visited 2 Branch Regions 1 Pre-discovered Areas . | . . . Known Exits Taken . | . . . Unknown Exits Taken 2 | 1 1 . Scrap Searched . | . . . Spaces Dug . | . . . Terrain Destroyed . | . . . Melee . | . . . Projectile . | . . . AOE . | . . . Terrain Rammed . | . . . Walls Destroyed . | . . . Machines Disabled . | . . . Actions | -11 -10 -10 --------- Run | Yrd Mat Sub Total 911 | 70 757 84 Wait 123 | 30 86 7 Move 648 | 27 573 48 Hop . | . . . Pick Up 17 | 2 15 . Fast Attach 3 | 1 2 . Attach 2 | . 1 1 Detach . | . . . Swap 9 | . 7 2 Drop 15 | . 15 . Fire 88 | 10 58 20 Melee 6 | . . 6 Ram . | . . . Kick . | . . . Crush . | . . . Escape Stasis . | . . . Rewire . | . . . Trap . | . . . Miscellaneous . | . . . Route ------- -11/Scrapyard -10/Materials (discovered 6 exits: *Mat x3 / [*Min x2] / [*Sub]) -10/Subcaves History --------- Turn | Location | Event 1 | -11/Scrapyard | Discovered new exit (range 3) 97 | -11/Scrapyard | Entered Materials 260 | -10/Materials | Discovered new exit (range 5) 303 | -10/Materials | Build established: Mutant 736 | -10/Materials | Discovered new exit (range 8) 1001 | -10/Materials | Core integrity fell below 50% 1127 | -10/Materials | Discovered new exit (range 12) 1127 | -10/Materials | Discovered new exit (range 12) 1218 | -10/Materials | Identified exit to Materials 1258 | -10/Materials | Discovered new exit (range 9) 1281 | -10/Materials | Entered Subcaves 1282 | -10/Subcaves | Approached by a straggling Scientist 1350 | -10/Subcaves | A swath of the cavern ceiling suddenly collapsed 1399 | -10/Subcaves | Core integrity fell below 20% 1446 | -10/Subcaves | Destroyed by Q4-BDK(R) with Subdweller Laser Last Messages --------------- 01246_ G-34 Mercenary destroyed. 01247_ Acquired 2 matter. 01247_ U-05 Engineer builds a Door. 01253_ Dropped Aluminum Leg. 01254_ Acquired 10 matter. 01258_ EXIT=FOUND 01260_ Dropped Ion Engine. 01264_ Acquired 10 matter. LOCATION=UNKNOWN AMBIENT_HEAT=-10 GOAL=ESCAPE 01282_ AC-AW5(c): "Thank the algorithms! I was beginning to lose hope I'd never make it past all the Subs lurking out here." 01285_ AC-AW5(c): "Hey, let me tag along and I can get us both out of this nasty situation. At least I think I can... The group I got separated from was talking about a shortcut back to the UFD." AC-AW5(c): "I think it's somewhere southeast of here" A swath of the cavern ceiling suddenly collapses. AC-AW5(c): "I think it's somewhere southeast of here" 01394_ Q4-BDK(R) suffers critical hit (Smash). 01424_ Ion Engine destroyed. 01438_ Aluminum Leg destroyed. Map ----- +----------------------------------------------------+ | ?????????????????????????????????????????????????? | | ?????????????????????????????????????????????????? | | ?????????????????????????????????????????????????? | | ?????????????????????????????????????????????????? | | ?????????????????????????????????????????????????? | | ??????????#####?????####?????????????????????????? | | ??????##### ####### #?????????????????????????? | | ??????# ## #?????????????????????????? | | ??????## ## #??????????????????????????? | | ?##????# #### #??????????????????????????? | | ?# ##### #??## #??##??????????????????????? | | ?# ## ##??### ### #??????????????????????? | | ## #??### ##?????????????????????? | | # #?## #?????????????????????? | | ### #?????????????????????? | | ##?????????????????????? | | # # # #??????????????????????? | | ##### ### ###; ##??????????????????????? | | ????## ##?### #;"##???????????????????????? | | ?????#### ###????# ?##;#????????????????????????? | | ????????####?????? ## #????????????????????????? | | ??????????????????####";####?????????????????????? | | ?????????????????? #;### #;#?????????????????????? | | ?????????????????? #";"R ;;#?????????????????????? | | ????????????????? ?### ##?????????????????????? | | ????????????????# #?#;;""@#??????????????????????? | | ????????????????#???#######??????????????????????? | | ????????????????????#?#??????????????????????????? | | ?????????????????????????????????????????????????? | | ?????????????????????????????????????????????????? | | ?????????????????????????????????????????????????? | | ?????????????????????????????????????????????????? | | ?????????????????????????????????????????????????? | | ?????????????????????????????????????????????????? | | ?????????????????????????????????????????????????? | | ?????????????????????????????????????????????????? | | ?????????????????????????????????????????????????? | | ?????????????????????????????????????????????????? | | ?????????????????????????????????????????????????? | | ?????????????????????????????????????????????????? | | ?????????????????????????????????????????????????? | | ?????????????????????????????????????????????????? | | ?????????????????????????????????????????????????? | | ?????????????????????????????????????????????????? | | ?????????????????????????????????????????????????? | | ?????????????????????????????????????????????????? | | ?????????????????????????????????????????????????? | | ?????????????????????????????????????????????????? | | ?????????????????????????????????????????????????? | | ?????????????????????????????????????????????????? | +----------------------------------------------------+ Best States ------------- Heat Dissipation 39 Energy Generation 10 Energy Capacity 250 Matter Stores 300 Matter Capacity 300 Sight Range 16 Terrain Scan Density 10 Armor Coverage 225 Evasion (%) 55 Item Schematics ----------------- None Robot Schematics ------------------ None Fabricated ------------ Nothing Repaired ---------- Nothing Studied --------- None Alien Tech Used ----------------- None Achievements -------------- None Challenges ------------ None Game ------ Seed FlyingDispersalAutogun Manual? 0 Play Time 00:15:18 Cumulative 176.5 hours Start 2026.01.23 @ 12:09:10 End 2026.01.23 @ 12:23:24 Sessions 1 Manual Loads 0 Difficulty Rogue Special Mode None Game No. 294 Rogue 290 Adventurer 0 Explorer 4 Win Type - Total 0 Types 0/0/0/0/0/0/0/0/0/0 Lore% 26 Gallery% 43 Achievement% 29 Wizard Run 0 Options --------- Layout 1 ASCII 0 Keyboard 1 Movement Arrows Keybinds 0 Fullscreen 1 Font 32/SmallcapsGlow Map View 130x35 Zoom Use 0% Tactical HUD 1 Map Filters NONE Filters NONE Steam 1 RUN: 2f866cb6-f683-4e1c-8563-d9997978bc1d